lending/lending_fUSD_20241025
["ID","MTS","AMOUNT","RATE_DAILY","PERIOD"]
[340797209,1729848643930,-500.0,0.00054794,120]
[340797210,1729848643940,-577.16331264,0.00054794,120]
[340797211,1729848643949,-526.49201268,0.00054794,120]
[340797212,1729848643959,-500.0,0.00054794,120]
[340797213,1729848643968,-530.02370474,0.00054794,120]
[340797214,1729848643977,-500.0,0.00054794,120]
[340797215,1729848643987,-541.63684981,0.00054794,120]
[340797216,1729848643996,-500.0,0.00054794,120]
[340797217,1729848644006,-500.0,0.00054794,120]
[340797218,1729848644015,-534.01931429,0.00054794,120]
[340797219,1729848644025,-500.0,0.00054794,120]
[340797220,1729848644035,-505.00348396,0.00054794,120]
[340797221,1729848644044,-516.88651562,0.00054794,120]
[340797222,1729848644054,-536.91031956,0.00054794,120]
[340797223,1729848644063,-500.0,0.00054794,120]
[340797224,1729848644073,-522.68440249,0.00054794,120]
[340797225,1729848644083,-517.24872712,0.00054794,120]
[340797226,1729848644092,-500.0,0.00054794,120]
[340797227,1729848644101,-500.0,0.00054794,120]
[340797228,1729848644111,-519.21449678,0.00054794,120]
[340797229,1729848644121,-500.0,0.00054794,120]
[340797230,1729848644130,-615.727527,0.00054794,120]
[340797231,1729848644139,-500.0,0.00054794,120]
[340797232,1729848644149,-500.0,0.00054794,120]
[340797233,1729848644158,-500.0,0.00054794,120]
[340797234,1729848644167,-500.0,0.00054794,120]
[340797235,1729848644177,-554.39134652,0.00054794,120]
[340797236,1729848644187,-509.9159642,0.00054794,120]
[340797237,1729848644196,-508.79112535,0.00054794,120]
[340797238,1729848644206,-545.65238572,0.00054794,120]
[340797239,1729848644216,-592.43124866,0.00054794,120]
[340797240,1729848644226,-500.0,0.00054794,120]
[340797241,1729848644236,-500.0,0.00054794,120]
[340797242,1729848644246,-504.46142836,0.00054794,120]
[340797243,1729848644260,-500.0,0.00054794,120]
[340797244,1729848644270,-514.85564537,0.00054794,120]
[340797245,1729848644280,-522.41832428,0.00054794,120]
[340797246,1729848644291,-500.0,0.00054794,120]
[340797247,1729848644301,-500.0,0.00054794,120]
[340797248,1729848644310,-526.88191583,0.00054794,120]
[340797249,1729848644320,-532.7984764,0.00054794,120]
[340797250,1729848644331,-500.0,0.00054794,120]
[340797251,1729848644341,-500.0,0.00054794,120]
[340797252,1729848644350,-305.99389121,0.00054794,120]
[340797253,1729848644360,-527.45262645,0.00054794,120]
[340797254,1729848644370,-500.0,0.00054794,120]
[340797255,1729848644379,-500.0,0.00054794,120]
[340797256,1729848644388,-513.96114668,0.00054794,120]
[340797257,1729848644398,-500.0,0.00054794,120]
[340797258,1729848644407,-500.0,0.00054794,120]
[340797259,1729848644416,-500.0,0.00054794,2]
[340797260,1729848644425,-502.96879046,0.00054794,120]
[340797261,1729848644434,-516.6532221,0.00054794,120]
[340797262,1729848644444,-506.40727348,0.00054794,120]
[340797263,1729848644453,-500.0,0.00054794,120]
[340797264,1729848644462,-500.0,0.00054794,120]
[340797265,1729848644471,-512.56775956,0.00054794,120]
[340797266,1729848644480,-508.04927763,0.00054794,120]
[340797267,1729848644490,-500.0,0.00054794,120]
[340797268,1729848644500,-500.0,0.00054794,120]
[340797269,1729848644513,-511.53456551,0.00054794,120]
[340797270,1729848644523,-500.0,0.00054794,120]
[340797271,1729848644533,-504.67999264,0.00054794,120]
[340797272,1729848644542,-500.0,0.00054794,120]
[340797273,1729848644552,-500.0,0.00054794,120]
[340797274,1729848644561,-505.14721665,0.00054794,120]
[340797275,1729848644571,-514.51688579,0.00054794,120]
[340797276,1729848644581,-517.17318984,0.00054794,120]
[340797277,1729848644591,-503.89443267,0.00054794,120]
[340797278,1729848644600,-516.50188352,0.00054794,120]
[340797279,1729848644610,-514.19353949,0.00054794,120]
[340797280,1729848644619,-500.0,0.00054794,120]
[340797281,1729848644628,-2258.87,0.00054794,120]
[340797282,1729848644638,-503.94545021,0.00054794,120]
[340797283,1729848644647,-500.0,0.00054794,120]
[340797284,1729848644657,-525.41606958,0.00054794,120]
[340797285,1729848644667,-518.60937882,0.00054794,120]
[340797286,1729848644677,-500.0,0.00054794,120]
[340797287,1729848644686,-504.11862795,0.00054794,120]
[340797288,1729848644696,-507.46865642,0.00054794,120]
[340797289,1729848644705,-500.0,0.00054794,120]
[340797290,1729848644715,-567.43391662,0.00054794,120]
[340797291,1729848644724,-504.76957351,0.00054794,120]
[340797292,1729848644733,-507.50458027,0.00054794,120]
[340797293,1729848644742,-530.93186048,0.00054794,120]
[340797294,1729848644751,-649.91182107,0.00054794,120]
[340797295,1729848644760,-502.21426585,0.00054794,120]
[340797296,1729848644770,-513.54499775,0.00054794,120]
[340797297,1729848644779,-511.85780337,0.00054794,120]
[340797298,1729848644788,-500.0,0.00054794,120]
[340797299,1729848644798,-1582.66,0.00054794,120]
[340797300,1729848644808,-500.0,0.00054794,120]
[340797301,1729848644818,-604.19763619,0.00054794,120]
[340797302,1729848644829,-500.0,0.00054794,120]
[340797303,1729848644838,-519.63145456,0.00054794,120]
[340797304,1729848644849,-500.0,0.00054794,120]
[340797305,1729848644858,-602.86681128,0.00054794,120]
[340797306,1729848644955,-505.47618125,0.00054794,120]
[340797307,1729848644977,-500.0,0.00054794,120]
[340797308,1729848644987,-500.0,0.00054794,120]
[340797309,1729848644998,-2271.38,0.00054794,120]
[340797310,1729848645008,-500.0,0.00054794,120]
[340797311,1729848645018,-506.25957862,0.00054794,120]
[340797312,1729848645029,-500.0,0.00054794,120]
[340797313,1729848645039,-511.9741913,0.00054794,120]
[340797314,1729848645049,-509.07500596,0.00054794,120]
[340797315,1729848645059,-510.13459513,0.00054794,120]
[340797316,1729848645069,-501.08003435,0.00054794,120]
[340797317,1729848645081,-500.0,0.00054794,120]
[340797318,1729848645091,-500.0,0.00054794,120]
[340797319,1729848645101,-503.98668664,0.00054794,120]
[340797320,1729848645111,-510.04111501,0.00054794,120]
[340797321,1729848645121,-514.67001516,0.00054794,120]
[340797322,1729848645130,-605.50096615,0.00054794,120]
[340797323,1729848645139,-499.85945245,0.00054794,120]
[340797324,1729848645149,-633.66543023,0.00054794,120]
[340797325,1729848645158,-514.63549379,0.00054794,120]
[340797326,1729848645168,-500.0,0.00054794,120]
[340797327,1729848645179,-500.0,0.00054794,120]
[340797328,1729848645189,-500.0,0.00054794,120]
[340797329,1729848645199,-500.0,0.00054794,120]
[340797330,1729848645209,-465.01017081,0.00054794,120]
[340797331,1729848645219,-517.22133474,0.00054794,120]
[340797332,1729848645228,-506.59325348,0.00054794,120]
[340797333,1729848645239,-500.0,0.00054794,120]
[340797334,1729848645250,-500.0,0.00054794,120]
[340797335,1729848645260,-537.83410551,0.00054794,120]
[340797336,1729848645270,-236.432726,0.00054794,120]
[340797337,1729848645280,-418.48672423,0.00054794,120]
[340797338,1729848645291,-500.0,0.00054794,120]
[340797339,1729848645300,-505.91555911,0.00054794,120]
[340797340,1729848645310,-503.76186472,0.00054794,120]
[340797341,1729848645319,-500.0,0.00054794,120]
[340797342,1729848645331,-505.25897197,0.00054794,120]
[340797343,1729848645343,-500.0,0.00054794,120]
[340797344,1729848645353,-627.56919786,0.00054794,120]
[340797345,1729848645363,-520.31122606,0.00054794,120]
[340797346,1729848645373,-494.1722949,0.00054794,120]
[340797347,1729848645383,-500.0,0.00054794,120]
[340797348,1729848645392,-500.0,0.00054794,120]
[340797349,1729848645403,-500.0,0.00054794,120]
[340797350,1729848645414,-500.0,0.00054794,120]
[340797351,1729848645425,-512.9589448,0.00054794,120]
[340797352,1729848645437,-500.0,0.00054794,120]
[340797353,1729848645449,-500.0,0.00054794,120]
[340797354,1729848645459,-510.75291725,0.00054794,120]
[340797355,1729848645469,-500.0,0.00054794,120]
[340797356,1729848645479,-500.0,0.00054794,120]
[340797357,1729848645489,-544.09223696,0.00054794,120]
[340797358,1729848645498,-513.26449007,0.00054794,120]
[340797359,1729848645508,-500.0,0.00054794,120]
[340797360,1729848645518,-500.0,0.00054794,120]
[340797361,1729848645528,-237.7490086,0.00054794,120]
[340797362,1729848645538,-500.0,0.00054794,21]
[340797363,1729848645548,-585.53183094,0.00054794,120]
[340797364,1729848645558,-506.70336793,0.00054794,120]
[340797365,1729848645568,-502.36027127,0.00054794,120]
[340797366,1729848645578,-512.02742606,0.00054794,120]
[340797367,1729848645588,-500.0,0.00054794,120]
[340797368,1729848645597,-500.0,0.00054794,120]
[340797369,1729848645606,-531.68057666,0.00054794,120]
[340797370,1729848645616,-516.54472662,0.00054794,120]
[340797371,1729848645625,-500.0,0.00054794,120]
[340797372,1729848645635,-504.98720443,0.00054794,120]
[340797373,1729848645645,-520.56384806,0.00054794,120]
[340797374,1729848645655,-557.1299728,0.00054794,120]
[340797375,1729848645665,-500.0,0.00054794,120]
[340797376,1729848645674,-484.78111832,0.00054794,120]
[340797377,1729848645684,-832.54,0.00054794,120]
[340797378,1729848645694,-509.38478,0.00054794,120]
[340797379,1729848645704,-500.0,0.00054794,120]
[340797380,1729848645714,-500.0,0.00054794,120]
[340797381,1729848645725,-505.02717132,0.00054794,120]
[340797382,1729848645736,-504.30388439,0.00054794,120]
[340797383,1729848645746,-410.47218923,0.00054794,120]
[340797384,1729848645755,-500.0,0.00054794,120]
[340797385,1729848645764,-510.28968958,0.00054794,120]
[340797386,1729848645774,-500.0,0.00054794,120]
[340797387,1729848645783,-512.82033525,0.00054794,120]
[340797388,1729848645793,-514.87118847,0.00054794,120]
[340797389,1729848645802,-541.7954748,0.00054794,120]
[340797390,1729848645813,-553.04194726,0.00054794,120]
[340797391,1729848645823,-500.0,0.00054794,120]
[340797392,1729848645832,-500.0,0.00054794,120]
[340797393,1729848645842,-516.4849009,0.00054794,120]
[340797394,1729848645851,-360.20285429,0.00054794,120]
[340797395,1729848645861,-505.48732606,0.00054794,120]
[340797396,1729848645871,-510.41072037,0.00054794,120]
[340797397,1729848645880,-770.35,0.00054794,120]
[340797398,1729848645890,-500.0,0.00054794,120]
[340797399,1729848645899,-543.20057629,0.00054794,120]
[340797400,1729848645908,-512.05402273,0.00054794,120]
[340797401,1729848645918,-500.0,0.00054794,120]
[340797402,1729848645927,-511.43562326,0.00054794,120]
[340797403,1729848645937,-500.0,0.00054794,120]
[340797405,1729848645946,-500.0,0.00054794,120]
[340797406,1729848645957,-500.0,0.00054794,120]
[340797407,1729848645966,-500.0,0.00054794,120]
[340797408,1729848645976,-500.0,0.00054794,120]
[340797409,1729848645985,-500.0,0.00054794,120]
[340797410,1729848645995,-500.0,0.00054794,120]
[340797411,1729848646004,-215.93807241,0.00054794,120]
[340797412,1729848646013,-500.0,0.00054794,120]
[340797413,1729848646022,-500.0,0.00054794,120]
[340797415,1729848646031,-216.79181405,0.00054794,120]
[340797416,1729848646041,-510.54847036,0.00054794,120]
[340797418,1729848646051,-575.9687378,0.00054794,120]
[340797420,1729848646060,-286.15350866,0.00054794,120]
[340797422,1729848646069,-500.0,0.00054794,120]
[340797424,1729848646079,-509.18280734,0.00054794,120]
[340797425,1729848646088,-500.0,0.00054794,120]
[340797426,1729848646097,-500.0,0.00054794,120]
[340797427,1729848646106,-526.18115264,0.00054794,120]
[340797429,1729848646115,-660.43,0.00054794,120]
[340797432,1729848646124,-500.0,0.00054794,120]
[340797434,1729848646133,-500.0,0.00054794,120]
[340797436,1729848646143,-511.21676104,0.00054794,120]
[340797438,1729848646153,-500.0,0.00054794,120]
[340797440,1729848646162,-500.0,0.00054794,120]
[340797442,1729848646172,-509.75929073,0.00054794,120]
[340797444,1729848646181,-519.71933714,0.00054794,120]
[340797446,1729848646192,-512.03261448,0.00054794,120]
[340797447,1729848646201,-500.0,0.00054794,120]
[340797449,1729848646211,-594.92620686,0.00054794,120]
[340797451,1729848646221,-500.0,0.00054794,120]
[340797461,1729848646319,-500.0,0.00054794,120]
[340797463,1729848646330,-503.71718963,0.00054794,120]
[340797465,1729848646345,-525.59488331,0.00054794,120]
[340797467,1729848646355,-500.0,0.00054794,4]
[340797469,1729848646365,-500.0,0.00054794,120]
[340797471,1729848646374,-518.35700529,0.00054794,120]
[340797472,1729848646383,-500.0,0.00054794,120]
[340797474,1729848646392,-524.690583,0.00054794,120]
[340797476,1729848646402,-500.0,0.00054794,120]
[340797478,1729848646411,-603.27369996,0.00054794,120]
[340797480,1729848646420,-508.2190273,0.00054794,120]
[340797482,1729848646431,-500.0,0.00054794,120]
[340797484,1729848646440,-520.52351633,0.00054794,120]
[340797486,1729848646449,-504.61703638,0.00054794,120]
[340797488,1729848646459,-511.84787693,0.00054794,120]
[340797490,1729848646468,-500.0,0.00054794,120]
[340797491,1729848646478,-309.40863574,0.00054794,120]
[340797493,1729848646487,-509.66188947,0.00054794,120]
[340797494,1729848646496,-515.69319015,0.00054794,120]
[340797496,1729848646505,-500.0,0.00054794,120]
[340797498,1729848646514,-500.0,0.00054794,120]
[340797500,1729848646524,-620.96733341,0.00054794,120]
[340797502,1729848646533,-272.96773216,0.00054794,120]
[340797504,1729848646542,-500.0,0.00054794,120]
[340797505,1729848646552,-505.4839205,0.00054794,120]
[340797506,1729848646562,-500.0,0.00054794,120]
[340797507,1729848646573,-516.78308114,0.00054794,120]
[340797508,1729848646582,-503.0723719,0.00054794,120]
[340797509,1729848646592,-549.00034086,0.00054794,120]
[340797511,1729848646603,-500.0,0.00054794,120]
[340797513,1729848646613,-500.0,0.00054794,120]
[340797515,1729848646624,-505.0873326,0.00054794,120]
[340797517,1729848646635,-507.17817403,0.00054794,120]
[340797519,1729848646646,-500.0,0.00054794,120]
[340797521,1729848646657,-500.0,0.00054794,120]
[340797523,1729848646666,-290.42746391,0.00054794,120]
[340797525,1729848646676,-507.81623494,0.00054794,120]
[340797527,1729848646685,-540.46033404,0.00054794,120]
[340797529,1729848646694,-500.0,0.00054794,120]
[340797531,1729848646705,-500.0,0.00054794,120]
[340797533,1729848646715,-509.21596785,0.00054794,120]
[340797535,1729848646724,-333.96144262,0.00054794,120]
[340797537,1729848646734,-500.0,0.00054794,120]
[340797539,1729848646743,-510.48584198,0.00054794,120]
[340797541,1729848646754,-500.0,0.00054794,120]
[340797543,1729848646763,-436.36472689,0.00054794,120]
[340797545,1729848646773,-500.0,0.00054794,120]
[340797547,1729848646783,-500.0,0.00054794,120]
[340797549,1729848646793,-633.74047283,0.00054794,120]
[340797552,1729848646805,-511.27783728,0.00054794,120]
[340797554,1729848646815,-1147.6,0.00054794,120]
[340797556,1729848646826,-500.0,0.00054794,120]
[340797558,1729848646835,-513.89155581,0.00054794,120]
[340797560,1729848646844,-530.04496864,0.00054794,120]
[340797562,1729848646855,-500.0,0.00054794,120]
[340797564,1729848646865,-508.27485962,0.00054794,120]
[340797566,1729848646875,-506.06651819,0.00054794,120]
[340797568,1729848646884,-554.24008143,0.00054794,120]
[340797570,1729848646895,-500.0,0.00054794,120]
[340797571,1729848646904,-506.36066669,0.00054794,120]
[340797573,1729848646914,-500.0,0.00054794,120]
[340797575,1729848646924,-500.0,0.00054794,120]
[340797577,1729848646933,-500.0,0.00054794,120]
[340797579,1729848646943,-553.63087088,0.00054794,120]
[340797581,1729848646954,-581.51147322,0.00054794,120]
[340797583,1729848646963,-500.0,0.00054794,120]
[340797585,1729848646974,-569.1438454,0.00054794,120]
[340797587,1729848646983,-500.0,0.00054794,120]
[340797589,1729848646992,-500.0,0.00054794,120]
[340797591,1729848647002,-500.0,0.00054794,120]
[340797593,1729848647012,-500.0,0.00054794,120]
[340797595,1729848647021,-500.0,0.00054794,120]
[340797597,1729848647031,-500.0,0.00054794,120]
[340797599,1729848647043,-500.0,0.00054794,120]
[340797601,1729848647053,-522.26669161,0.00054794,120]
[340797603,1729848647062,-500.0,0.00054794,120]
[340797605,1729848647071,-500.0,0.00054794,120]
[340797607,1729848647081,-500.0,0.00054794,120]
[340797609,1729848647092,-516.92718627,0.00054794,120]
[340797611,1729848647102,-522.93487473,0.00054794,120]
[340797613,1729848647113,-503.17104881,0.00054794,120]
[340797615,1729848647124,-205.74017367,0.00054794,120]
[340797617,1729848647134,-519.34271939,0.00054794,120]
[340797619,1729848647145,-500.0,0.00054794,120]
[340797621,1729848647155,-500.0,0.00054794,120]
[340797623,1729848647165,-513.0824484,0.00054794,120]
[340797625,1729848647174,-500.0,0.00054794,120]
[340797627,1729848647184,-521.73611062,0.00054794,120]
[340797629,1729848647195,-523.70345528,0.00054794,120]
[340797631,1729848647204,-526.49439088,0.00054794,120]
[340797633,1729848647213,-500.0,0.00054794,120]
[340797635,1729848647222,-500.0,0.00054794,120]
[340797637,1729848647232,-500.0,0.00054794,120]
[340797639,1729848647243,-500.0,0.00054794,120]
[340797641,1729848647257,-503.93934571,0.00054794,120]
[340797643,1729848647266,-504.97909502,0.00054794,120]
[340797645,1729848647276,-506.1232022,0.00054794,120]
[340797647,1729848647285,-499.73374149,0.00054794,120]
[340797649,1729848647296,-500.0,0.00054794,120]
[340797651,1729848647306,-500.0,0.00054794,120]
[340797652,1729848647315,-500.0,0.00054794,120]
[340797654,1729848647327,-500.0,0.00054794,14]
[340797656,1729848647337,-500.0,0.00054794,120]
[340797658,1729848647347,-500.0,0.00054794,120]
[340797660,1729848647356,-500.0,0.00054794,120]
[340797662,1729848647366,-500.0,0.00054794,120]
[340797664,1729848647375,-511.43613758,0.00054794,120]
[340797666,1729848647385,-500.0,0.00054794,120]
[340797668,1729848647394,-500.0,0.00054794,120]
[340797670,1729848647403,-500.0,0.00054794,120]
[340797672,1729848647412,-500.0,0.00054794,120]
[340797673,1729848647422,-500.0,0.00054794,120]
[340797675,1729848647432,-500.0,0.00054794,120]
[340797677,1729848647441,-500.0,0.00054794,120]
[340797679,1729848647451,-500.0,0.00054794,120]
[340797681,1729848647461,-500.0,0.00054794,120]
[340797683,1729848647470,-503.27522421,0.00054794,120]
[340797685,1729848647480,-500.0,0.00054794,120]
[340797696,1729848647571,-500.0,0.00054794,120]
[340797698,1729848647582,-263.10225491,0.00054794,120]
[340797700,1729848647591,-500.0,0.00054794,120]
[340797702,1729848647600,-500.0,0.00054794,120]
[340797703,1729848647609,-500.0,0.00054794,120]
[340797705,1729848647619,-519.31,0.00054794,120]
[340797707,1729848647628,-266.48727476,0.00054794,120]
[340797709,1729848647639,-512.76674658,0.00054794,120]
[340797711,1729848647649,-500.0,0.00054794,120]
[340797713,1729848647660,-500.0,0.00054794,120]
[340797715,1729848647669,-501.50715749,0.00054794,120]
[340797717,1729848647679,-500.0,0.00054794,120]
[340797719,1729848647688,-500.0,0.00054794,120]
[340797721,1729848647697,-500.0,0.00054794,120]
[340797723,1729848647707,-500.0,0.00054794,120]
[340797725,1729848647716,-500.0,0.00054794,120]
[340797727,1729848647725,-500.0,0.00054794,120]
[340797729,1729848647734,-500.0,0.00054794,120]
[340797731,1729848647743,-500.0,0.00054794,120]
[340797733,1729848647753,-500.0,0.00054794,120]
[340797735,1729848647762,-500.0,0.00054794,120]
[340797736,1729848647771,-529.94340532,0.00054794,120]
[340797738,1729848647781,-512.69067505,0.00054794,120]
[340797740,1729848647790,-500.0,0.00054794,120]
[340797742,1729848647799,-500.0,0.00054794,120]
[340797744,1729848647809,-500.0,0.00054794,120]
[340797746,1729848647818,-500.0,0.00054794,120]
[340797748,1729848647828,-500.0,0.00054794,120]
[340797750,1729848647838,-500.0,0.00054794,120]
[340797752,1729848647849,-509.45319904,0.00054794,120]
[340797754,1729848647858,-500.0,0.00054794,120]
[340797756,1729848647868,-500.0,0.00054794,120]
[340797758,1729848647877,-500.0,0.00054794,120]
[340797760,1729848647888,-500.0,0.00054794,120]
[340797763,1729848647898,-500.0,0.00054794,120]
[340797765,1729848647908,-500.0,0.00054794,120]
[340797767,1729848647918,-553.44409847,0.00054794,120]
[340797769,1729848647929,-506.24136378,0.00054794,120]
[340797771,1729848647940,-512.83755944,0.00054794,120]
[340797773,1729848647951,-503.69922863,0.00054794,120]
[340797775,1729848647962,-500.0,0.00054794,120]
[340797777,1729848647971,-500.0,0.00054794,120]
[340797779,1729848647981,-500.0,0.00054794,120]
[340797781,1729848647990,-500.0,0.00054794,120]
[340797783,1729848647999,-515.2188813,0.00054794,120]
[340797785,1729848648008,-500.0,0.00054794,120]
[340797786,1729848648017,-500.0,0.00054794,120]
[340797788,1729848648026,-500.0,0.00054794,120]
[340797790,1729848648036,-520.35465215,0.00054794,120]
[340797792,1729848648046,-500.0,0.00054794,120]
[340797794,1729848648055,-500.0,0.00054794,120]
[340797796,1729848648064,-532.60383179,0.00054794,120]
[340797798,1729848648075,-510.78129671,0.00054794,120]
[340797800,1729848648085,-500.0,0.00054794,120]
[340797802,1729848648094,-508.57481978,0.00054794,120]
[340797804,1729848648104,-649.57433648,0.00054794,120]
[340797806,1729848648114,-500.0,0.00054794,120]
[340797808,1729848648123,-500.0,0.00054794,120]
[340797810,1729848648132,-500.0,0.00054794,120]
[340797812,1729848648142,-506.82160521,0.00054794,120]
[340797814,1729848648152,-500.0,0.00054794,120]
[340797816,1729848648161,-503.13160596,0.00054794,120]
[340797818,1729848648171,-500.0,0.00054794,120]
[340797819,1729848648181,-500.0,0.00054794,120]
[340797821,1729848648190,-522.48952087,0.00054794,120]
[340797823,1729848648199,-400.3804353,0.00054794,120]
[340797825,1729848648210,-500.0462338,0.00054794,120]
[340797827,1729848648219,-500.0,0.00054794,120]
[340797829,1729848648229,-500.0,0.00054794,120]
[340797831,1729848648239,-500.0,0.00054794,120]
[340797833,1729848648250,-502.7142155,0.00054794,120]
[340797835,1729848648261,-500.0,0.00054794,120]
[340797837,1729848648271,-500.0,0.00054794,120]
[340797839,1729848648280,-500.0,0.00054794,120]
[340797841,1729848648290,-578.97001408,0.00054794,120]
[340797843,1729848648301,-500.0,0.00054794,120]
[340797845,1729848648311,-500.0,0.00054794,120]
[340797847,1729848648320,-500.0,0.00054794,120]
[340797849,1729848648332,-505.04092038,0.00054794,120]
[340797851,1729848648343,-500.0,0.00054794,120]
[340797853,1729848648353,-509.51784528,0.00054794,120]
[340797855,1729848648363,-500.0,0.00054794,120]
[340797857,1729848648372,-500.0,0.00054794,120]
[340797859,1729848648382,-500.0,0.00054794,120]
[340797861,1729848648391,-500.0,0.00054794,120]
[340797863,1729848648401,-500.0,0.00054794,120]
[340797865,1729848648410,-500.0,0.00054794,120]
[340797867,1729848648420,-500.0,0.00054794,120]
[340797869,1729848648430,-500.0,0.00054794,120]
[340797871,1729848648439,-500.0,0.00054794,120]
[340797872,1729848648448,-500.0,0.00054794,120]
[340797874,1729848648458,-566.08163154,0.00054794,120]
[340797876,1729848648467,-500.0,0.00054794,120]
[340797878,1729848648477,-647.6415824,0.00054794,120]
[340797880,1729848648486,-500.0,0.00054794,120]
[340797882,1729848648495,-500.0,0.00054794,120]
[340797884,1729848648505,-2217.22,0.00054794,120]
[340797886,1729848648515,-561.24,0.00054794,120]
[340797888,1729848648524,-906.77,0.00054794,120]
[340797890,1729848648534,-1290.93,0.00054794,120]
[340797892,1729848648544,-937.09,0.00054794,120]
[340797894,1729848648553,-2217.22,0.00054794,120]
[340797896,1729848648563,-1034.87,0.00054794,120]
[340797898,1729848648572,-891.82,0.00054794,120]
[340797900,1729848648585,-1767.43,0.00054794,120]
[340797902,1729848648594,-500.0,0.00054794,120]
[340797904,1729848648603,-817.5,0.00054794,120]
[340797906,1729848648612,-1246.81,0.00054794,120]
[340797916,1729848648699,-1028.95,0.00054794,120]
[340797918,1729848648710,-2366.7,0.00054794,120]
[340797920,1729848648721,-1405.64,0.00054794,120]
[340797922,1729848648731,-8868.88,0.00054794,120]
[340797924,1729848648740,-1349.12,0.00054794,120]
[340797926,1729848648750,-1635.01,0.00054794,120]
[340797927,1729848648759,-1246.81,0.00054794,120]
[340797929,1729848648769,-514.47,0.00054794,120]
[340797931,1729848648778,-1406.02,0.00054794,120]
[340797933,1729848648788,-1183.35,0.00054794,120]
[340797935,1729848648798,-500.0,0.00054794,120]
[340797937,1729848648807,-500.0,0.00054794,120]
[340797939,1729848648816,-500.0,0.00054794,120]
[340797941,1729848648825,-500.0,0.00054794,120]
[340797943,1729848648835,-500.0,0.00054794,120]
[340797945,1729848648844,-500.0,0.00054794,120]
[340797947,1729848648853,-500.0,0.00054794,120]
[340797948,1729848648862,-500.0,0.00054794,120]
[340797950,1729848648871,-500.0,0.00054794,120]
[340797952,1729848648881,-500.0,0.00054794,120]
[340797954,1729848648890,-500.0,0.00054794,120]
[340797956,1729848648901,-500.0,0.00054794,120]
[340797959,1729848648911,-500.0,0.00054794,120]
[340797960,1729848648921,-500.0,0.00054794,120]
[340797962,1729848648930,-500.0,0.00054794,120]
[340797964,1729848648940,-500.0,0.00054794,120]
[340797966,1729848648950,-500.0,0.00054794,120]
[340797968,1729848648959,-500.0,0.00054794,120]
[340797970,1729848648969,-500.0,0.00054794,120]
[340797972,1729848648978,-500.0,0.00054794,120]
[340797974,1729848648987,-500.0,0.00054794,120]
[340797976,1729848648997,-345.04772075,0.00054794,120]
[340797978,1729848649006,-500.0,0.00054794,120]
[340797980,1729848649016,-326.47074136,0.00054794,120]
[340797982,1729848649025,-500.0,0.00054794,120]
[340797984,1729848649034,-971.15,0.00054794,120]
[340797986,1729848649044,-500.0,0.00054794,120]
[340797988,1729848649053,-500.0,0.00054794,120]
[340797990,1729848649062,-500.0,0.00054794,120]
[340797992,1729848649071,-3835.81,0.00054794,120]
[340797994,1729848649082,-500.0,0.00054794,120]
[340797996,1729848649092,-500.0,0.00054794,120]
[340797998,1729848649101,-500.0,0.00054794,120]
[340798000,1729848649111,-500.0,0.00054794,120]
[340798002,1729848649121,-500.0,0.00054794,120]
[340798004,1729848649131,-138.82362653,0.00054794,120]
[340798030,1729848649549,-361.17637347,0.00054794,120]
[340798031,1729848649567,-500.0,0.00054794,120]
[340798032,1729848649584,-500.0,0.00054794,120]